[Event "Open NK Rapid 2025 bord 26-50"]
[Site "Helmond, Netherlands"]
[Date "2025.05.03"]
[Round "5.5"]
[White "Gergin, Isafara"]
[Black "Apon, Iwahn"]
[Result "0-1"]
[TimeControl "15 min +5 sec increment"]
[WhiteFideId "1082167"]
[BlackFideId "1056115"]
[WhiteElo "1779"]
[BlackElo "1987"]

1. e4 {[%clk 00:15:09]} c5 {[%clk 00:15:09]} {[%emt 00:00:02]} 2. Nf3 {[%clk
00:15:13]} {[%emt 00:00:02]} d6 {[%clk 00:15:12]} {[%emt 00:00:01]} 3. d4
{[%clk 00:15:16]} {[%emt 00:00:01]} cxd4 {[%clk 00:15:17]} 4. Nxd4 {[%clk
00:15:19]} {[%emt 00:00:02]} Nf6 {[%clk 00:15:20]} 5. Nc3 {[%clk 00:15:23]}
{[%emt 00:00:02]} a6 {[%clk 00:15:24]} 6. Bd3 {[%clk 00:15:26]} {[%emt
00:00:01]} e5 {[%clk 00:15:27]} {[%emt 00:00:02]} 7. Nde2 {[%clk 00:15:30]}
{[%emt 00:00:02]} Be6 {[%clk 00:15:23]} {[%emt 00:00:09]} 8. O-O {[%clk
00:15:32]} {[%emt 00:00:03]} Be7 {[%clk 00:14:54]} {[%emt 00:00:33]} 9. Ng3
{[%clk 00:15:34]} {[%emt 00:00:03]} Qc7 {[%clk 00:13:16]} {[%emt 00:01:43]} 10.
Kh1 {[%clk 00:15:25]} {[%emt 00:00:14]} Nbd7 {[%clk 00:11:19]} {[%emt
00:02:02]} 11. f4 {[%clk 00:14:49]} {[%emt 00:00:42]} Nc5 {[%clk 00:10:32]}
{[%emt 00:00:52]} 12. fxe5 {[%clk 00:14:08]} {[%emt 00:00:46]} dxe5 {[%clk
00:10:26]} {[%emt 00:00:10]} 13. Nf5 {[%clk 00:13:45]} {[%emt 00:00:28]} Bxf5
{[%clk 00:09:55]} {[%emt 00:00:37]} 14. Rxf5 {[%clk 00:13:22]} {[%emt
00:00:27]} O-O-O {[%clk 00:09:37]} {[%emt 00:00:23]} 15. Qf1 {[%clk 00:12:39]}
{[%emt 00:00:49]} Qc6 {[%clk 00:07:15]} {[%emt 00:02:27]} 16. Nd5 {[%clk
00:11:25]} {[%emt 00:01:19]} Nxd5 {[%clk 00:06:41]} {[%emt 00:00:39]} 17. exd5
{[%clk 00:11:27]} {[%emt 00:00:03]} Qxd5 {[%clk 00:06:26]} {[%emt 00:00:21]} 18.
Rxf7 {[%clk 00:11:00]} {[%emt 00:00:31]} Nxd3 {[%clk 00:05:36]} {[%emt
00:00:54]} 19. cxd3 {[%clk 00:10:11]} {[%emt 00:00:55]} Bf6 {[%clk 00:05:07]}
{[%emt 00:00:35]} 20. Qf5+ {[%clk 00:08:15]} {[%emt 00:02:00]} Kb8 {[%clk
00:04:59]} {[%emt 00:00:12]} 21. Qh5 {[%clk 00:07:40]} {[%emt 00:00:40]} g6
{[%clk 00:04:35]} {[%emt 00:00:30]} 22. Qf3 {[%clk 00:07:23]} {[%emt 00:00:22]}
Qxf7 {[%clk 00:04:28]} {[%emt 00:00:12]} 23. Bg5 {[%clk 00:07:19]} {[%emt
00:00:09]} Rhf8 {[%clk 00:04:14]} {[%emt 00:00:18]} 24. Rf1 {[%clk 00:07:21]}
{[%emt 00:00:03]} Rd6 {[%clk 00:03:59]} {[%emt 00:00:21]} 25. Qf2 {[%clk
00:06:44]} {[%emt 00:00:42]} Qe7 {[%clk 00:03:42]} {[%emt 00:00:22]} 26. Be3
{[%clk 00:06:16]} {[%emt 00:00:33]} Bg7 {[%clk 00:03:28]} {[%emt 00:00:19]} 0-1

[Event "Open NK Rapid 2025 bord 26-50"]
[Site "Helmond, Netherlands"]
[Date "2025.05.03"]
[Round "5.6"]
[White "Blok, Lukas"]
[Black "Landman, Renzo"]
[Result "0-1"]
[TimeControl "15 min +5 sec increment"]
[WhiteFideId "40110494"]
[BlackFideId "40106306"]
[WhiteElo "1741"]
[BlackElo "1975"]

1. c4 {[%clk 00:15:09]} {[%emt 00:00:01]} e6 {[%clk 00:14:56]} {[%emt
00:00:14]} 2. Nc3 {[%clk 00:15:12]} {[%emt 00:00:02]} d5 {[%clk 00:14:54]}
{[%emt 00:00:07]} 3. Nf3 {[%clk 00:15:11]} {[%emt 00:00:07]} d4 {[%clk
00:14:32]} {[%emt 00:00:26]} 4. Ne4 {[%clk 00:15:07]} {[%emt 00:00:09]} c5
{[%clk 00:14:11]} {[%emt 00:00:26]} 5. d3 {[%clk 00:14:47]} {[%emt 00:00:26]}
Nc6 {[%clk 00:14:08]} {[%emt 00:00:07]} 6. e3 {[%clk 00:14:17]} {[%emt
00:00:35]} e5 {[%clk 00:13:41]} {[%emt 00:00:32]} 7. Be2 {[%clk 00:13:37]}
{[%emt 00:00:45]} f5 {[%clk 00:12:06]} {[%emt 00:01:40]} 8. Ng3 {[%clk
00:09:22]} {[%emt 00:04:20]} Nf6 {[%clk 00:12:02]} {[%emt 00:00:08]} 9. exd4
{[%clk 00:08:34]} {[%emt 00:00:54]} cxd4 {[%clk 00:11:54]} {[%emt 00:00:13]} 10.
Nd2 {[%clk 00:08:07]} {[%emt 00:00:31]} Bd6 {[%clk 00:11:20]} {[%emt 00:00:40]}
11. a3 {[%clk 00:07:43]} {[%emt 00:00:30]} a5 {[%clk 00:11:12]} {[%emt
00:00:13]} 12. Qc2 {[%clk 00:07:26]} {[%emt 00:00:21]} h5 {[%clk 00:10:17]}
{[%emt 00:01:00]} 13. h4 {[%clk 00:06:43]} {[%emt 00:00:48]} Qe7 {[%clk
00:09:11]} {[%emt 00:01:11]} 14. b3 {[%clk 00:04:44]} {[%emt 00:02:05]} e4
{[%clk 00:08:18]} {[%emt 00:00:57]} 15. c5 {[%clk 00:03:36]} {[%emt 00:01:13]}
Bxg3 {[%clk 00:06:04]} {[%emt 00:02:18]} 16. fxg3 {[%clk 00:03:36]} {[%emt
00:00:06]} Qe5 {[%clk 00:05:44]} {[%emt 00:00:25]} 17. Rh3 {[%clk 00:01:44]}
{[%emt 00:01:57]} Be6 {[%clk 00:04:01]} {[%emt 00:01:48]} 18. Nc4 {[%clk
00:01:29]} {[%emt 00:00:21]} Qxc5 {[%clk 00:03:32]} {[%emt 00:00:33]} 19. Bf4
{[%clk 00:01:29]} {[%emt 00:00:05]} Bxc4 {[%clk 00:03:30]} {[%emt 00:00:07]} 20.
bxc4 {[%clk 00:01:29]} {[%emt 00:00:06]} O-O {[%clk 00:03:06]} {[%emt
00:00:29]} 21. Kf1 {[%clk 00:00:52]} {[%emt 00:00:41]} Rae8 {[%clk 00:02:54]}
{[%emt 00:00:16]} 22. Kg1 {[%clk 00:00:42]} {[%emt 00:00:16]} Ng4 {[%clk
00:02:26]} {[%emt 00:00:33]} 23. Rf1 {[%clk 00:00:09]} {[%emt 00:00:38]} Qxa3
{[%clk 00:02:09]} {[%emt 00:00:23]} 24. Qc1 {[%clk 00:00:12]} {[%emt 00:00:02]}
Qxc1 {[%clk 00:01:36]} {[%emt 00:00:37]} 25. Rxc1 {[%clk 00:00:16]} {[%emt
00:00:02]} Nce5 {[%clk 00:01:28]} {[%emt 00:00:12]} 26. dxe4 {[%clk 00:00:17]}
{[%emt 00:00:05]} fxe4 {[%clk 00:01:21]} {[%emt 00:00:12]} 27. Rd1 {[%clk
00:00:15]} {[%emt 00:00:07]} d3 {[%clk 00:01:22]} {[%emt 00:00:03]} 28. Bf1
{[%clk 00:00:14]} {[%emt 00:00:06]} Nxc4 {[%clk 00:01:16]} {[%emt 00:00:11]} 29.
Rc1 {[%clk 00:00:11]} {[%emt 00:00:08]} b5 {[%clk 00:01:12]} {[%emt 00:00:09]}
30. Ra1 {[%clk 00:00:06]} {[%emt 00:00:10]} a4 {[%clk 00:01:04]} {[%emt
00:00:13]} 31. Rb1 {[%clk 00:00:11]} Rf5 {[%clk 00:01:05]} {[%emt 00:00:04]} 32.
Re1 {[%clk 00:00:13]} {[%emt 00:00:03]} Kf7 {[%clk 00:00:54]} {[%emt 00:00:16]}
33. Rb1 {[%clk 00:00:15]} {[%emt 00:00:03]} a3 {[%clk 00:00:47]} {[%emt
00:00:10]} 34. Rxb5 {[%clk 00:00:19]} {[%emt 00:00:02]} Rxb5 {[%clk 00:00:48]}
{[%emt 00:00:04]} 0-1

[Event "Open NK Rapid 2025 bord 26-50"]
[Site "Helmond, Netherlands"]
[Date "2025.05.03"]
[Round "5.7"]
[White "Van Wamel, Gijs"]
[Black "Fransen, Jean-Paul"]
[Result "1-0"]
[TimeControl "15 min +5 sec increment"]
[WhiteFideId "40102165"]
[BlackFideId "40101487"]
[WhiteElo "1713"]
[BlackElo "1964"]

1. Nf3 {[%clk 00:15:09]} {[%emt 00:00:01]} g6 {[%clk 00:15:09]} {[%emt
00:00:02]} 2. g3 {[%clk 00:15:11]} {[%emt 00:00:02]} Bg7 {[%clk 00:15:12]} 3.
Bg2 {[%clk 00:15:15]} {[%emt 00:00:02]} c5 {[%clk 00:15:17]} 4. c4 {[%clk
00:15:17]} {[%emt 00:00:03]} Nf6 {[%clk 00:15:19]} {[%emt 00:00:02]} 5. O-O
{[%clk 00:15:19]} {[%emt 00:00:03]} O-O {[%clk 00:15:21]} {[%emt 00:00:03]} 6.
Nc3 {[%clk 00:15:14]} {[%emt 00:00:09]} Nc6 {[%clk 00:15:23]} {[%emt 00:00:04]}
7. e3 {[%clk 00:15:00]} {[%emt 00:00:18]} d5 {[%clk 00:15:00]} {[%emt
00:00:28]} 8. cxd5 {[%clk 00:13:58]} {[%emt 00:01:07]} Nxd5 {[%clk 00:15:03]}
{[%emt 00:00:03]} 9. d4 {[%clk 00:13:57]} {[%emt 00:00:06]} cxd4 {[%clk
00:14:45]} {[%emt 00:00:23]} 10. Nxd4 {[%clk 00:13:57]} {[%emt 00:00:04]} Nxc3
{[%clk 00:13:18]} {[%emt 00:01:33]} 11. bxc3 {[%clk 00:13:49]} {[%emt
00:00:13]} Ne5 {[%clk 00:12:03]} {[%emt 00:01:20]} 12. Rb1 {[%clk 00:13:25]}
{[%emt 00:00:29]} Rb8 {[%clk 00:11:23]} {[%emt 00:00:45]} 13. Qa4 {[%clk
00:13:20]} {[%emt 00:00:09]} a6 {[%clk 00:10:48]} {[%emt 00:00:41]} 14. Ba3
{[%clk 00:13:10]} {[%emt 00:00:15]} Qc7 {[%clk 00:09:13]} {[%emt 00:01:39]} 15.
Rfc1 {[%clk 00:12:30]} {[%emt 00:00:46]} b5 {[%clk 00:08:20]} {[%emt 00:00:58]}
16. Qb4 {[%clk 00:11:49]} {[%emt 00:00:46]} Re8 {[%clk 00:07:25]} {[%emt
00:01:00]} 17. Rd1 {[%clk 00:09:44]} {[%emt 00:02:10]} Bg4 {[%clk 00:06:25]}
{[%emt 00:01:03]} 18. f3 {[%clk 00:09:07]} {[%emt 00:00:44]} Bd7 {[%clk
00:06:19]} {[%emt 00:00:10]} 19. Qc5 {[%clk 00:08:54]} {[%emt 00:00:18]} Qxc5
{[%clk 00:05:18]} {[%emt 00:01:07]} 20. Bxc5 {[%clk 00:08:57]} {[%emt
00:00:02]} Bc6 {[%clk 00:04:29]} {[%emt 00:00:53]} 21. Nxc6 {[%clk 00:08:35]}
{[%emt 00:00:28]} Nxc6 {[%clk 00:04:33]} {[%emt 00:00:01]} 22. Bd4 {[%clk
00:08:38]} {[%emt 00:00:01]} e5 {[%clk 00:04:29]} {[%emt 00:00:10]} 23. Bc5
{[%clk 00:08:42]} {[%emt 00:00:01]} e4 {[%clk 00:03:59]} {[%emt 00:00:35]} 24.
fxe4 {[%clk 00:08:07]} {[%emt 00:00:40]} Bxc3 {[%clk 00:04:00]} {[%emt
00:00:04]} 25. Rd7 {[%clk 00:07:58]} {[%emt 00:00:13]} Ne5 {[%clk 00:03:48]}
{[%emt 00:00:17]} 26. Ra7 {[%clk 00:07:57]} {[%emt 00:00:07]} Ra8 {[%clk
00:03:47]} {[%emt 00:00:06]} 27. Rxa8 {[%clk 00:07:24]} {[%emt 00:00:38]} Rxa8
{[%clk 00:03:51]} 28. Bd4 {[%clk 00:07:11]} {[%emt 00:00:18]} Rc8 {[%clk
00:03:42]} {[%emt 00:00:14]} 29. Rc1 {[%clk 00:06:57]} {[%emt 00:00:19]} Rc4
{[%clk 00:03:11]} {[%emt 00:00:36]} 30. Rxc3 {[%clk 00:06:46]} {[%emt
00:00:16]} Ng4 {[%clk 00:03:09]} {[%emt 00:00:07]} 31. Rxc4 {[%clk 00:06:41]}
{[%emt 00:00:10]} bxc4 {[%clk 00:03:13]} {[%emt 00:00:01]} 32. Bf1 {[%clk
00:06:42]} {[%emt 00:00:04]} Kf8 {[%clk 00:03:14]} {[%emt 00:00:03]} 33. Bxc4
{[%clk 00:06:45]} {[%emt 00:00:03]} a5 {[%clk 00:03:18]} {[%emt 00:00:01]} 34.
Bb6 {[%clk 00:06:41]} {[%emt 00:00:09]} Ke7 {[%clk 00:03:22]} {[%emt 00:00:01]}
35. Bxa5 {[%clk 00:06:43]} {[%emt 00:00:03]} Nxe3 {[%clk 00:03:25]} {[%emt
00:00:02]} 36. Bd5 {[%clk 00:06:28]} {[%emt 00:00:20]} f5 {[%clk 00:03:25]}
{[%emt 00:00:05]} 37. Bb6 {[%clk 00:06:20]} {[%emt 00:00:12]} Nc2 {[%clk
00:03:17]} {[%emt 00:00:14]} 38. exf5 {[%clk 00:06:14]} {[%emt 00:00:11]} gxf5
{[%clk 00:03:18]} {[%emt 00:00:04]} 39. a4 {[%clk 00:06:10]} {[%emt 00:00:09]}
Kd6 {[%clk 00:03:21]} {[%emt 00:00:02]} 40. Bg8 {[%clk 00:06:12]} {[%emt
00:00:03]} h6 {[%clk 00:03:22]} {[%emt 00:00:05]} 41. Bh7 {[%clk 00:06:11]}
{[%emt 00:00:05]} 1-0

[Event "Open NK Rapid 2025 bord 26-50"]
[Site "Helmond, Netherlands"]
[Date "2025.05.03"]
[Round "5.8"]
[White "Darie, Aden"]
[Black "Lenting, Roan"]
[Result "1-0"]
[TimeControl "15 min +5 sec increment"]
[WhiteFideId "1094831"]
[BlackFideId "1085905"]
[WhiteElo "1941"]
[BlackElo "1621"]

1. e4 {[%clk 00:15:09]} {[%emt 00:00:01]} c5 {[%clk 00:15:09]} {[%emt
00:00:01]} 2. Nf3 {[%clk 00:15:12]} {[%emt 00:00:02]} e6 {[%clk 00:15:14]} 3.
c4 {[%clk 00:15:13]} {[%emt 00:00:03]} Nc6 {[%clk 00:15:15]} {[%emt 00:00:04]}
4. d4 {[%clk 00:15:16]} {[%emt 00:00:02]} cxd4 {[%clk 00:15:14]} {[%emt
00:00:06]} 5. Nxd4 {[%clk 00:15:19]} {[%emt 00:00:02]} Nf6 {[%clk 00:15:05]}
{[%emt 00:00:14]} 6. Nc3 {[%clk 00:15:23]} {[%emt 00:00:01]} Bb4 {[%clk
00:15:06]} {[%emt 00:00:04]} 7. Nxc6 {[%clk 00:15:25]} {[%emt 00:00:03]} bxc6
{[%clk 00:14:47]} {[%emt 00:00:24]} 8. Bd3 {[%clk 00:15:28]} {[%emt 00:00:02]}
d5 {[%clk 00:14:45]} {[%emt 00:00:07]} 9. cxd5 {[%clk 00:15:30]} {[%emt
00:00:03]} exd5 {[%clk 00:14:45]} {[%emt 00:00:05]} 10. exd5 {[%clk 00:15:33]}
{[%emt 00:00:02]} Nxd5 {[%clk 00:14:39]} {[%emt 00:00:10]} 11. O-O {[%clk
00:15:36]} {[%emt 00:00:03]} O-O {[%clk 00:14:27]} {[%emt 00:00:18]} 12. Nxd5
{[%clk 00:15:08]} {[%emt 00:00:32]} Qxd5 {[%clk 00:14:04]} {[%emt 00:00:28]} 13.
Qc2 {[%clk 00:14:32]} {[%emt 00:00:41]} h6 {[%clk 00:13:17]} {[%emt 00:00:52]}
14. Be4 {[%clk 00:14:31]} {[%emt 00:00:05]} Qe5 {[%clk 00:12:05]} {[%emt
00:01:17]} 15. a3 {[%clk 00:12:38]} {[%emt 00:01:59]} Bd6 {[%clk 00:11:56]}
{[%emt 00:00:14]} 16. g3 {[%clk 00:12:41]} {[%emt 00:00:01]} Bb7 {[%clk
00:09:53]} {[%emt 00:02:08]} 17. Bf4 {[%clk 00:12:21]} {[%emt 00:00:25]} Qc5
{[%clk 00:09:56]} {[%emt 00:00:03]} 18. Qxc5 {[%clk 00:12:13]} {[%emt
00:00:13]} Bxc5 {[%clk 00:10:00]} 19. Rac1 {[%clk 00:12:04]} {[%emt 00:00:14]}
Bb6 {[%clk 00:09:44]} {[%emt 00:00:21]} 20. Bxc6 {[%clk 00:11:47]} {[%emt
00:00:22]} Bxc6 {[%clk 00:09:48]} 21. Rxc6 {[%clk 00:11:50]} {[%emt 00:00:01]}
Rac8 {[%clk 00:09:52]} 22. Rfc1 {[%clk 00:11:29]} {[%emt 00:00:26]} Rxc6 {[%clk
00:09:51]} {[%emt 00:00:07]} 23. Rxc6 {[%clk 00:11:32]} {[%emt 00:00:02]} Re8
{[%clk 00:09:19]} {[%emt 00:00:36]} 24. Rc2 {[%clk 00:11:20]} {[%emt 00:00:18]}
g5 {[%clk 00:08:46]} {[%emt 00:00:38]} 25. Bd6 {[%clk 00:11:03]} {[%emt
00:00:21]} Rd8 {[%clk 00:08:24]} {[%emt 00:00:27]} 26. Be7 {[%clk 00:10:27]}
{[%emt 00:00:41]} Re8 {[%clk 00:07:17]} {[%emt 00:01:13]} 27. Bf6 {[%clk
00:09:45]} {[%emt 00:00:46]} Kh7 {[%clk 00:07:05]} {[%emt 00:00:18]} 28. Rd2
{[%clk 00:09:24]} {[%emt 00:00:25]} Kg6 {[%clk 00:06:17]} {[%emt 00:00:54]} 29.
Bd4 {[%clk 00:08:54]} {[%emt 00:00:35]} Rd8 {[%clk 00:05:48]} {[%emt 00:00:33]}
30. Be3 {[%clk 00:08:58]} {[%emt 00:00:02]} Rxd2 {[%clk 00:05:51]} {[%emt
00:00:03]} 31. Bxd2 {[%clk 00:09:01]} a6 {[%clk 00:04:48]} {[%emt 00:01:08]} 32.
Kf1 {[%clk 00:08:49]} {[%emt 00:00:17]} Kf5 {[%clk 00:04:44]} {[%emt 00:00:08]}
33. h3 {[%clk 00:08:36]} {[%emt 00:00:18]} Ke4 {[%clk 00:04:44]} {[%emt
00:00:06]} 34. Ke2 {[%clk 00:08:39]} {[%emt 00:00:02]} f5 {[%clk 00:04:15]}
{[%emt 00:00:33]} 35. f3+ {[%clk 00:08:37]} {[%emt 00:00:08]} Kd5 {[%clk
00:03:57]} {[%emt 00:00:22]} 36. Kd3 {[%clk 00:08:31]} {[%emt 00:00:11]} Bd8
{[%clk 00:02:31]} {[%emt 00:01:32]} 37. g4 {[%clk 00:08:20]} {[%emt 00:00:16]}
fxg4 {[%clk 00:02:05]} {[%emt 00:00:30]} 38. hxg4 {[%clk 00:08:22]} {[%emt
00:00:03]} Ke5 {[%clk 00:00:42]} {[%emt 00:01:29]} 39. b3 {[%clk 00:08:12]}
{[%emt 00:00:15]} Be7 {[%clk 00:00:15]} {[%emt 00:00:32]} 40. a4 {[%clk
00:08:12]} {[%emt 00:00:05]} Bd8 {[%clk 00:00:16]} {[%emt 00:00:04]} 41. Bc3+
{[%clk 00:07:40]} {[%emt 00:00:36]} Kf4 {[%clk 00:00:21]} 42. Ke2 {[%clk
00:07:44]} {[%emt 00:00:01]} Be7 {[%clk 00:00:14]} {[%emt 00:00:12]} 43. Bg7
{[%clk 00:07:46]} {[%emt 00:00:03]} Bc5 {[%clk 00:00:12]} {[%emt 00:00:07]} 44.
Bxh6 {[%clk 00:07:49]} {[%emt 00:00:02]} Bd4 {[%clk 00:00:15]} {[%emt
00:00:02]} 45. Bf8 {[%clk 00:07:49]} {[%emt 00:00:05]} Bc3 {[%clk 00:00:14]}
{[%emt 00:00:06]} 46. Bd6+ {[%clk 00:07:51]} {[%emt 00:00:02]} Be5 {[%clk
00:00:14]} {[%emt 00:00:06]} 47. Bxe5+ {[%clk 00:07:55]} {[%emt 00:00:01]} Kxe5
{[%clk 00:00:18]} {[%emt 00:00:01]} 48. Ke3 {[%clk 00:07:57]} {[%emt 00:00:03]}
a5 {[%clk 00:00:22]} 49. f4+ {[%clk 00:07:45]} {[%emt 00:00:17]} gxf4+ {[%clk
00:00:26]} {[%emt 00:00:02]} 50. Kf3 {[%clk 00:07:50]} Kd4 {[%clk 00:00:17]}
{[%emt 00:00:15]} 51. Kxf4 {[%clk 00:07:48]} {[%emt 00:00:05]} Kc3 {[%clk
00:00:21]} {[%emt 00:00:02]} 52. g5 {[%clk 00:07:51]} {[%emt 00:00:02]} Kxb3
{[%clk 00:00:25]} {[%emt 00:00:02]} 53. g6 {[%clk 00:07:55]} Kxa4 {[%clk
00:00:27]} {[%emt 00:00:02]} 54. g7 {[%clk 00:07:59]} Ka3 {[%clk 00:00:25]}
{[%emt 00:00:08]} 55. g8=Q {[%clk 00:08:02]} {[%emt 00:00:02]} a4 {[%clk
00:00:29]} 56. Ke3 {[%clk 00:07:57]} {[%emt 00:00:10]} Kb2 {[%clk 00:00:33]}
{[%emt 00:00:02]} 57. Qb8+ {[%clk 00:07:58]} {[%emt 00:00:03]} Kc2 {[%clk
00:00:35]} {[%emt 00:00:03]} 58. Qc7+ {[%clk 00:08:02]} {[%emt 00:00:01]} Kb2
{[%clk 00:00:37]} {[%emt 00:00:02]} 59. Qb6+ {[%clk 00:08:05]} {[%emt
00:00:02]} Kc2 {[%clk 00:00:40]} {[%emt 00:00:03]} 60. Qc6+ {[%clk 00:08:08]}
{[%emt 00:00:02]} Kb3 {[%clk 00:00:43]} {[%emt 00:00:01]} 61. Kd2 {[%clk
00:08:11]} {[%emt 00:00:02]} a3 {[%clk 00:00:47]} {[%emt 00:00:02]} 62. Kc1
{[%clk 00:08:11]} {[%emt 00:00:05]} Ka2 {[%clk 00:00:45]} {[%emt 00:00:08]} 63.
Qc2+ {[%clk 00:08:14]} {[%emt 00:00:01]} Ka1 {[%clk 00:00:48]} {[%emt
00:00:02]} 64. Qb1# {[%clk 00:08:18]} 1-0

[Event "Open NK Rapid 2025 bord 26-50"]
[Site "Helmond, Netherlands"]
[Date "2025.05.03"]
[Round "5.9"]
[White "Kools, Thomas"]
[Black "Messaoudi, Nino"]
[Result "1-0"]
[TimeControl "15 min +5 sec increment"]
[WhiteFideId "1054759"]
[BlackFideId "1099930"]
[WhiteElo "2094"]
[BlackElo "1875"]

1. Nf3 {[%clk 00:15:08]} {[%emt 00:00:01]} Nf6 {[%clk 00:15:06]} {[%emt
00:00:04]} 2. e3 {[%clk 00:15:12]} {[%emt 00:00:01]} d5 {[%clk 00:15:00]}
{[%emt 00:00:11]} 3. d4 {[%clk 00:15:08]} {[%emt 00:00:09]} c5 {[%clk
00:14:44]} {[%emt 00:00:21]} 4. c3 {[%clk 00:14:41]} {[%emt 00:00:32]} Nc6
{[%clk 00:14:30]} {[%emt 00:00:19]} 5. Nbd2 {[%clk 00:14:34]} {[%emt 00:00:11]}
Bf5 {[%clk 00:13:09]} {[%emt 00:01:26]} 6. dxc5 {[%clk 00:14:30]} {[%emt
00:00:10]} a5 {[%clk 00:12:44]} {[%emt 00:00:30]} 7. Bb5 {[%clk 00:14:33]}
{[%emt 00:00:02]} Qc7 {[%clk 00:11:48]} {[%emt 00:01:01]} 8. b4 {[%clk
00:13:52]} {[%emt 00:00:47]} e5 {[%clk 00:09:24]} {[%emt 00:02:29]} 9. Bb2
{[%clk 00:13:30]} {[%emt 00:00:27]} Be7 {[%clk 00:09:10]} {[%emt 00:00:18]} 10.
O-O {[%clk 00:13:14]} {[%emt 00:00:20]} O-O {[%clk 00:09:13]} {[%emt 00:00:03]}
11. a3 {[%clk 00:13:15]} {[%emt 00:00:05]} e4 {[%clk 00:08:04]} {[%emt
00:01:14]} 12. Nd4 {[%clk 00:13:05]} {[%emt 00:00:15]} Nxd4 {[%clk 00:08:05]}
{[%emt 00:00:03]} 13. cxd4 {[%clk 00:12:19]} {[%emt 00:00:51]} Ng4 {[%clk
00:07:08]} {[%emt 00:01:02]} 14. g3 {[%clk 00:12:20]} {[%emt 00:00:04]} h5
{[%clk 00:06:58]} {[%emt 00:00:15]} 15. Be2 {[%clk 00:11:25]} {[%emt 00:01:00]}
Bg5 {[%clk 00:05:05]} {[%emt 00:01:58]} 16. Qb3 {[%clk 00:10:00]} {[%emt
00:01:30]} Rfd8 {[%clk 00:04:06]} {[%emt 00:01:03]} 17. bxa5 {[%clk 00:09:06]}
{[%emt 00:01:01]} Qxa5 {[%clk 00:02:51]} {[%emt 00:01:20]} 18. Bc3 {[%clk
00:08:04]} {[%emt 00:01:07]} Qc7 {[%clk 00:02:32]} {[%emt 00:00:24]} 19. Rfb1
{[%clk 00:06:29]} {[%emt 00:01:40]} Rab8 {[%clk 00:01:51]} {[%emt 00:00:44]} 20.
Nf1 {[%clk 00:05:47]} {[%emt 00:00:48]} h4 {[%clk 00:01:48]} {[%emt 00:00:08]}
21. Qb6 {[%clk 00:05:33]} {[%emt 00:00:19]} Qe7 {[%clk 00:01:43]} {[%emt
00:00:10]} 22. Bxg4 {[%clk 00:04:45]} {[%emt 00:00:52]} Bxg4 {[%clk 00:01:46]}
{[%emt 00:00:03]} 23. c6 {[%clk 00:04:49]} {[%emt 00:00:01]} Rdc8 {[%clk
00:00:54]} {[%emt 00:00:57]} 24. Bd2 {[%clk 00:03:35]} {[%emt 00:01:20]} Bf3
{[%clk 00:00:52]} {[%emt 00:00:07]} 25. h3 {[%clk 00:02:47]} {[%emt 00:00:53]}
Qe6 {[%clk 00:00:51]} {[%emt 00:00:05]} 26. Kh2 {[%clk 00:02:51]} {[%emt
00:00:01]} Rxc6 {[%clk 00:00:49]} {[%emt 00:00:08]} 27. Qb4 {[%clk 00:02:52]}
{[%emt 00:00:03]} Qh6 {[%clk 00:00:30]} {[%emt 00:00:23]} 28. g4 {[%clk
00:02:37]} {[%emt 00:00:21]} Rg6 {[%clk 00:00:20]} {[%emt 00:00:15]} 29. Qc5
{[%clk 00:02:16]} {[%emt 00:00:26]} Rd6 {[%clk 00:00:13]} {[%emt 00:00:13]} 30.
Rxb7 {[%clk 00:02:08]} {[%emt 00:00:13]} Rxb7 {[%clk 00:00:12]} {[%emt
00:00:06]} 31. Qc8+ {[%clk 00:02:12]} Rd8 {[%clk 00:00:16]} 32. Qxb7 {[%clk
00:02:16]} {[%emt 00:00:02]} f5 {[%clk 00:00:13]} {[%emt 00:00:07]} 33. Ba5
{[%clk 00:01:47]} {[%emt 00:00:34]} Rf8 {[%clk 00:00:10]} {[%emt 00:00:08]} 34.
Qxd5+ {[%clk 00:01:49]} {[%emt 00:00:02]} Kh8 {[%clk 00:00:12]} {[%emt
00:00:03]} 35. gxf5 {[%clk 00:01:37]} {[%emt 00:00:17]} Bf6 {[%clk 00:00:12]}
{[%emt 00:00:05]} 36. Nd2 {[%clk 00:01:35]} {[%emt 00:00:07]} Qh5 {[%clk
00:00:09]} {[%emt 00:00:08]} 37. Qd6 {[%clk 00:01:12]} {[%emt 00:00:28]} Rd8
{[%clk 00:00:09]} {[%emt 00:00:06]} 38. Qf4 {[%clk 00:01:14]} {[%emt 00:00:03]}
Rf8 {[%clk 00:00:11]} {[%emt 00:00:02]} 39. Nxf3 {[%clk 00:01:17]} {[%emt
00:00:02]} exf3 {[%clk 00:00:15]} {[%emt 00:00:02]} 40. Rg1 {[%clk 00:01:14]}
{[%emt 00:00:08]} Be7 {[%clk 00:00:06]} {[%emt 00:00:14]} 41. e4 {[%clk
00:01:12]} {[%emt 00:00:07]} Rc8 {[%emt 00:00:07]} 1-0